bitfinex/quotes_ETHUSD_20250920
["timestamp","ask_amount","ask_price","bid_price","bid_amount"]
[1758354697693,0.2261,4486.0,4485.6,3.02130929]
[1758354697873,0.2261,4485.9,4485.8,0.792]
[1758354698623,0.2261,4485.9,4485.8,3.02125676]
[1758354698797,0.2261,4485.9,4485.8,0.792]
[1758354698998,0.2261,4485.9,4485.4,0.792]
[1758354699199,0.2261,4485.8,4485.4,3.02142624]
[1758354699603,0.67012526,4486.0,4485.6,2.22934843]
[1758354699907,0.67012526,4486.0,4485.9,3.02120707]
[1758354700294,0.2261,4486.4,4486.0,2.2291224]
[1758354700494,2.22868951,4487.0,4486.1,2.22906828]
[1758354700805,0.2261,4486.3,4486.1,2.22906828]
[1758354701974,0.2261,4486.3,4486.2,2.229058]
[1758354703210,0.6700624,4486.6,4486.4,0.792]
[1758354703413,0.2381,4486.9,4486.0,0.792]
[1758354703583,0.2261,4486.8,4486.3,3.02098298]
[1758354703915,0.2264,4486.7,4486.4,2.22895132]
[1758354704089,0.2264,4486.6,4486.3,3.02099937]
[1758354704410,0.012,4486.9,4486.5,2.22890894]
[1758354704576,0.012,4486.9,4486.4,2.22895494]
[1758354704769,0.012,4486.9,4486.5,2.22890556]
[1758354704972,0.2264,4486.8,4486.5,2.22890556]
[1758354705313,0.2264,4486.7,4486.3,0.792]
[1758354705612,0.012,4486.9,4486.8,2.22875991]
[1758354706001,0.012,4486.9,4486.8,2.47125991]
[1758354706173,0.012,4486.9,4486.8,3.26325991]
[1758354707411,0.012,4486.9,4486.8,3.02075991]
[1758354707771,0.2384,4486.9,4486.8,3.02075991]
[1758354707974,0.2384,4486.9,4486.6,0.792]
[1758354708171,0.012,4486.9,4486.8,2.22875991]
[1758354708884,0.2384,4486.9,4486.3,0.66996962]
[1758354709087,0.2264,4486.8,4486.2,0.792]
[1758354709281,0.2264,4486.7,4486.4,2.22892056]
[1758354709498,0.2264,4486.6,4485.8,0.67102498]
[1758354709717,0.012,4486.9,4485.9,2.22919038]
[1758354709718,0.2264,4486.5,4485.9,2.22919038]
[1758354709929,0.2264,4486.4,4485.9,2.22919038]
[1758354710297,0.2264,4486.3,4485.8,0.793]
[1758354710497,0.2264,4486.2,4485.8,0.793]
[1758354710801,0.2264,4486.2,4485.8,0.001]
[1758354711216,0.2264,4486.2,4485.8,0.793]
[1758354711411,0.2264,4486.1,4485.8,0.001]
[1758354712026,0.2264,4486.0,4485.8,0.001]
[1758354712228,2.22898943,4486.4,4485.8,0.001]
[1758354712402,0.2264,4486.3,4485.8,0.001]
[1758354714535,0.2264,4486.2,4485.8,0.001]
[1758354714738,0.2264,4486.2,4485.8,2.23025106]
[1758354714937,0.2264,4486.1,4485.8,2.23024207]
[1758354716231,0.2264,4486.1,4485.9,2.22920406]
[1758354716726,0.2264,4486.1,4485.8,2.23024535]
[1758354717230,0.2264,4486.1,4485.9,2.22920249]
[1758354717444,0.2264,4486.5,4486.0,2.22914469]
[1758354717646,0.2264,4486.4,4486.0,2.22914469]
[1758354718237,0.12510967,4486.6,4486.0,2.22914469]
[1758354718434,0.2264,4486.5,4485.9,2.47169137]
[1758354718639,0.2264,4486.4,4485.9,2.47169137]
[1758354718950,0.2264,4486.3,4485.9,2.47169137]
[1758354719366,0.2264,4486.3,4485.9,0.2425]
[1758354719730,0.2264,4486.3,4486.0,2.22912187]
[1758354720953,0.2264,4486.3,4485.9,0.2425]
[1758354721128,0.2264,4486.3,4485.9,2.47169111]
[1758354721311,0.2264,4486.3,4486.0,2.22915712]
[1758354721936,0.12514936,4486.6,4485.8,0.001]
[1758354722139,0.2463,4486.2,4485.8,0.001]
[1758354722338,0.13714936,4486.9,4485.8,0.001]
[1758354722543,0.2463,4486.1,4485.8,0.001]
[1758354722719,0.2463,4486.1,4485.9,2.22919805]
[1758354723232,0.2463,4486.5,4485.8,0.001]
[1758354723433,2.22897315,4486.4,4485.8,0.001]
[1758354723639,0.24752732,4486.3,4485.8,0.001]
[1758354723953,0.49382732,4486.3,4485.8,0.001]
[1758354724150,0.2463,4486.2,4485.8,0.001]
[1758354724757,0.2463,4486.2,4485.8,2.23025166]
[1758354725153,2.22896987,4486.4,4485.8,0.001]
[1758354725359,0.2463,4486.1,4485.8,0.001]
[1758354725656,0.37157535,4486.3,4485.8,0.001]
[1758354725857,2.4753098,4486.3,4485.8,0.001]
[1758354726259,0.2463,4486.2,4485.8,0.001]
[1758354726960,0.2463,4486.2,4485.8,2.23024689]
[1758354727156,0.2463,4486.2,4485.8,2.47464689]
[1758354727760,0.2463,4486.2,4485.8,0.001]
[1758354728055,0.2463,4486.1,4485.8,0.001]
[1758354728262,0.2463,4486.1,4485.8,2.23025549]
[1758354728465,0.2463,4486.2,4485.8,0.001]
[1758354730632,0.2463,4486.1,4485.8,0.001]
[1758354731746,2.22901885,4486.3,4485.8,0.001]
[1758354732052,0.2463,4486.0,4485.8,0.001]
[1758354734851,0.2463,4486.0,4485.8,2.23023776]
[1758354735075,0.33404636,4486.4,4485.8,2.23023776]
[1758354735269,0.2345,4486.2,4485.8,0.001]
[1758354735796,2.22915737,4486.0,4485.8,0.001]
[1758354735958,2.56325343,4485.9,4485.8,0.001]
[1758354736157,2.79775343,4485.9,4485.8,0.001]
[1758354740169,2.79975343,4485.9,4485.8,0.001]
[1758354742597,2.22929159,4485.8,4485.1,0.1805]
[1758354742796,0.33404636,4485.7,4485.1,0.1805]
[1758354743108,0.33404636,4485.7,4485.1,2.41009454]
[1758354743560,0.33404636,4485.7,4485.2,2.22954971]
[1758354743761,0.33404636,4485.7,4485.1,0.1805]
[1758354743762,0.33404636,4485.8,4485.1,2.22959141]
[1758354743978,0.33404636,4485.8,4485.2,2.22955164]
[1758354744298,0.33404636,4485.8,4485.1,2.22959694]
[1758354744480,2.56330431,4485.8,4485.1,2.22959694]
[1758354744661,0.33404636,4485.7,4485.2,0.2275]
[1758354744860,0.33404636,4485.7,4485.3,0.2275]
[1758354745193,0.33404636,4485.8,4485.3,0.2275]
[1758354745395,0.33404636,4485.8,4485.3,2.22947302]
[1758354745578,2.56529169,4485.9,4485.4,0.2275]
[1758354745777,0.61402553,4485.8,4485.4,0.2275]
[1758354746599,0.002,4485.9,4485.4,0.2275]
[1758354746991,2.56526226,4485.9,4485.4,0.2275]
[1758354747286,0.33404636,4485.8,4485.4,0.2275]
[1758354747489,0.33604636,4485.9,4485.4,0.2275]
[1758354747709,2.5652581,4485.9,4485.4,0.2275]
[1758354748011,0.61402217,4485.8,4485.4,0.2275]
[1758354748705,2.84328555,4485.8,4485.4,0.2275]
[1758354748898,0.33404636,4485.7,4485.4,0.2275]
[1758354749274,0.33404636,4485.7,4485.1,2.22958891]
[1758354749498,0.33404636,4485.7,4485.2,0.2275]
[1758354749702,2.50924003,4485.8,4485.3,0.2275]
[1758354749909,0.55536207,4485.7,4485.3,0.2275]
[1758354752312,0.22131571,4485.7,4485.3,0.2275]
[1758354752507,0.55536207,4485.7,4485.3,0.2275]
[1758354753114,0.22131571,4485.7,4485.3,0.2275]
[1758354753990,0.55536207,4485.7,4485.3,0.2275]
[1758354755126,0.51447581,4485.6,4484.6,0.793]
[1758354755325,2.22944027,4485.5,4484.8,2.22974562]
[1758354756031,2.46394027,4485.5,4484.8,2.22974562]
[1758354756400,2.46394027,4485.5,4484.8,2.45724562]
[1758354757106,2.22945935,4485.4,4484.8,1.0195]
[1758354757307,2.22937422,4485.6,4484.8,0.792]
[1758354757507,2.46396404,4485.4,4484.8,0.792]
[1758354757710,0.2345,4485.4,4484.8,2.22975021]
[1758354758767,0.2345,4485.4,4484.8,2.23075021]
[1758354759724,2.46396119,4485.4,4484.8,0.793]
[1758354759931,2.46396119,4485.4,4484.8,1.0205]
[1758354761142,2.46396119,4485.4,4484.8,3.25025113]
[1758354761341,0.2345,4485.4,4484.8,0.2285]
[1758354761728,0.2345,4485.4,4484.8,2.45823836]
[1758354762322,0.35987647,4485.4,4484.8,2.45823836]
[1758354762616,0.35987647,4485.4,4484.9,2.22970164]
[1758354763146,0.12537647,4485.4,4485.0,0.2275]
[1758354763344,0.33438281,4485.4,4485.0,0.2275]
[1758354763706,0.33438281,4485.5,4484.8,2.23070542]
[1758354763944,0.2274,4485.4,4484.8,2.23070542]
[1758354764441,0.2274,4485.4,4484.9,2.22970148]
[1758354764946,0.2274,4485.4,4485.0,0.2376]
[1758354765310,0.33438281,4485.3,4485.0,0.2376]
[1758354765507,0.33438281,4485.3,4485.0,2.46725014]
[1758354765710,0.33438281,4485.5,4485.0,2.46725014]
[1758354766012,0.33438281,4485.4,4485.0,2.46725014]
[1758354766212,0.33438281,4485.3,4485.0,2.46725014]
[1758354766429,0.33438281,4485.5,4485.0,2.46725014]
[1758354766628,0.33452418,4485.4,4485.0,2.46725014]
[1758354766846,0.33452418,4485.3,4485.0,2.46725014]
[1758354767047,0.33452418,4485.5,4485.0,2.46725014]
[1758354767236,0.33452418,4485.4,4485.0,2.46725014]
[1758354767424,0.33452418,4485.3,4485.0,2.46725014]
[1758354767627,0.33452418,4485.5,4485.0,2.46725014]
[1758354767829,0.33452418,4485.4,4485.0,2.46725014]
[1758354768048,0.33452418,4485.3,4485.0,2.46725014]
[1758354768255,0.33452418,4485.5,4485.0,0.2376]
[1758354768548,0.33452418,4485.4,4485.0,0.2376]
[1758354768728,0.33452418,4485.3,4485.0,0.2376]
[1758354768931,0.33452418,4485.5,4485.0,0.2376]
[1758354769249,0.33452418,4485.4,4485.0,0.2376]
[1758354769552,0.33452418,4485.3,4485.0,0.2376]
[1758354769751,0.33452418,4485.5,4485.0,0.2376]
[1758354769953,0.33452418,4485.4,4485.0,0.2376]
[1758354770161,0.33452418,4485.3,4485.0,0.2376]
[1758354770451,0.33452418,4485.5,4485.0,0.2376]
[1758354770658,0.33452418,4485.4,4485.0,2.46724995]
[1758354770832,0.33452418,4485.3,4485.0,2.46724995]
[1758354771036,0.33452418,4485.6,4485.0,2.46724995]
[1758354771331,0.33452418,4485.5,4485.0,2.46724995]
[1758354771532,0.33452418,4485.4,4485.0,2.46724995]
[1758354771721,0.33452418,4485.3,4485.0,2.46724995]
[1758354771922,0.33452418,4485.5,4485.0,0.2376]
[1758354772229,0.67024803,4485.3,4485.0,0.2376]
[1758354772429,1.00477221,4485.3,4485.0,0.2376]
[1758354772642,0.67024803,4485.3,4485.0,0.2376]
[1758354772841,0.67024803,4485.3,4485.0,2.46724076]
[1758354773030,1.00495718,4485.3,4485.0,2.46724076]
[1758354773231,0.67024803,4485.3,4485.0,2.46724076]
[1758354773632,1.00495765,4485.3,4485.0,2.46724076]
[1758354773827,0.67024803,4485.3,4485.0,0.2376]
[1758354774035,0.67024803,4485.3,4485.0,2.46724905]
[1758354774434,1.00495765,4485.3,4485.0,2.46724905]
[1758354774735,0.67024803,4485.3,4485.0,2.46724905]
[1758354775559,1.00495868,4485.3,4485.0,0.2376]
[1758354775758,0.67024803,4485.3,4485.0,0.2376]
[1758354776131,0.67024803,4485.3,4485.0,2.46725022]
[1758354776435,1.00496024,4485.3,4485.0,2.46725022]
[1758354776639,0.67024803,4485.3,4485.0,0.2376]
[1758354776854,0.67024803,4485.3,4485.0,2.46725298]
[1758354777237,1.00496235,4485.3,4485.0,2.46725298]
[1758354777440,0.67024803,4485.3,4485.0,2.46725298]
[1758354777653,0.67024803,4485.3,4485.1,2.22960219]
[1758354778052,1.00496476,4485.3,4485.1,2.46720219]
[1758354778257,0.67024803,4485.3,4485.1,2.46720238]
[1758354778847,1.00696844,4485.3,4485.1,0.2376]
[1758354779043,0.67224803,4485.3,4485.1,0.2376]
[1758354779643,1.00696844,4485.3,4485.1,2.22959936]
[1758354779851,0.67224803,4485.3,4485.2,0.2376]
[1758354780146,0.67224803,4485.3,4485.2,2.46715498]
[1758354780733,0.67224803,4485.3,4485.2,0.2376]
[1758354780972,1.00697285,4485.3,4485.2,0.2376]
[1758354781570,0.67224803,4485.3,4485.2,0.2376]
[1758354782761,1.00697285,4485.3,4485.2,0.2376]
[1758354782944,0.67224803,4485.3,4485.2,0.2376]
[1758354783152,0.67224803,4485.3,4485.0,0.001]
[1758354783351,0.12552181,4485.2,4485.1,0.2377]
[1758354784971,0.12552181,4485.2,4485.0,0.001]
[1758354785361,0.12552181,4485.2,4485.1,0.2377]
[1758354785858,0.12552181,4485.2,4485.0,0.001]
[1758354786254,0.12552181,4485.2,4485.0,2.23064874]
[1758354786451,0.12552181,4485.2,4485.0,2.46834874]
[1758354787010,0.12552181,4485.2,4485.0,0.2387]
[1758354787308,0.12552181,4485.2,4485.0,0.001]
[1758354789089,0.12552181,4485.2,4485.0,2.23065206]
[1758354789256,0.12552181,4485.2,4485.0,0.2387]
[1758354790696,0.12552181,4485.2,4485.0,0.001]
[1758354800017,0.12552181,4485.2,4485.0,2.23064966]
[1758354800418,0.12552181,4485.2,4485.0,0.001]
[1758354800721,0.2436,4485.1,4485.0,0.001]
[1758354801015,0.36912181,4485.2,4485.0,0.001]
[1758354801519,0.12552181,4485.2,4485.0,0.001]
[1758354802020,0.12552181,4485.2,4485.0,2.23064689]
[1758354802317,0.12552181,4485.2,4485.0,0.001]
[1758354803678,0.36912181,4485.2,4485.0,0.001]
[1758354804508,0.12552181,4485.2,4485.0,0.001]
[1758354805908,0.2436,4485.1,4485.0,0.001]
[1758354806720,0.36912181,4485.1,4485.0,0.001]
[1758354806925,0.2436,4485.1,4485.0,0.001]
[1758354807084,0.61272181,4485.1,4485.0,0.001]
[1758354807422,0.2436,4485.1,4485.0,0.001]
[1758354807641,0.36912181,4485.1,4485.0,0.001]
[1758354807788,0.4872,4485.1,4485.0,0.001]
[1758354808128,0.36912181,4485.1,4485.0,0.001]
[1758354808332,0.2436,4485.1,4485.0,0.001]
[1758354808535,0.36912181,4485.1,4485.0,0.001]
[1758354808687,0.2436,4485.1,4485.0,0.001]
[1758354808890,0.36912181,4485.1,4485.0,0.001]
[1758354809132,0.2436,4485.1,4485.0,0.001]
[1758354809425,0.36912181,4485.1,4485.0,0.001]
[1758354809626,0.2436,4485.1,4485.0,0.001]
[1758354809927,0.36912181,4485.1,4485.0,0.001]
[1758354810137,0.2436,4485.1,4485.0,0.001]
[1758354810329,0.36912181,4485.1,4485.0,0.001]
[1758354810504,0.2436,4485.1,4485.0,0.001]
[1758354810705,0.36912181,4485.1,4485.0,0.001]
[1758354810908,0.2436,4485.1,4485.0,0.001]
[1758354811107,0.36912181,4485.1,4485.0,0.001]
[1758354811406,0.4872,4485.1,4485.0,0.001]
[1758354811606,0.61272181,4485.1,4485.0,0.001]
[1758354811821,0.4872,4485.1,4485.0,0.001]
[1758354812021,0.61272181,4485.1,4485.0,0.001]
[1758354812222,0.4872,4485.1,4485.0,0.001]
[1758354812421,0.61272181,4485.1,4485.0,0.001]
[1758354812624,0.4872,4485.1,4485.0,0.001]
[1758354812917,0.61272181,4485.1,4485.0,0.001]
[1758354813249,7.08959877,4485.1,4485.0,0.001]
[1758354813450,7.29876694,4485.1,4485.0,0.001]
[1758354815158,7.2987059,4485.1,4485.0,0.001]
[1758354818057,0.57822894,4485.1,4485.0,0.001]
[1758354818362,0.2436,4485.1,4485.0,0.2395]
[1758354818727,0.36912181,4485.1,4485.0,0.2395]
[1758354819156,0.2436,4485.1,4485.0,0.2395]
[1758354819862,0.52477433,4485.1,4485.0,0.2395]
[1758354820564,0.2436,4485.1,4485.0,0.2395]
[1758354820728,0.002,4485.2,4485.0,0.2395]
[1758354821130,0.002,4485.2,4485.0,0.001]
[1758354821343,0.002,4485.2,4485.1,0.2385]
[1758354827692,2.23155758,4485.2,4485.0,0.001]
[1758354827983,0.12552181,4485.1,4485.0,0.001]
[1758354828382,0.12552181,4485.1,4485.0,0.2433]
[1758354828594,0.2168922,4485.2,4485.0,0.2433]
[1758354829054,0.2168922,4485.2,4485.1,0.2423]
[1758354831912,0.2168922,4485.2,4485.0,0.001]
[1758354832112,0.42589675,4485.2,4485.0,0.001]
[1758354832781,0.33652636,4485.2,4485.0,0.001]
[1758354833830,2.79698396,4485.2,4485.0,0.001]
[1758354834006,0.12552181,4485.1,4485.0,0.001]
[1758354834317,0.35642181,4485.1,4485.0,0.001]
[1758354834706,0.56546827,4485.1,4485.0,0.001]
[1758354834911,0.35642181,4485.1,4485.0,0.001]
[1758354835091,0.56546827,4485.1,4485.0,0.001]
[1758354836208,2.79507296,4485.1,4485.0,0.001]
[1758354836583,0.56546827,4485.1,4485.0,0.001]
[1758354836788,0.33456827,4485.1,4485.0,0.001]
[1758354840227,2.56417296,4485.1,4485.0,0.001]
[1758354840520,0.33456827,4485.1,4485.0,0.001]
[1758354840894,0.12552181,4485.1,4485.0,0.001]
[1758354841690,0.12546714,4485.1,4485.0,0.001]
[1758354842199,0.12546714,4485.1,4485.0,0.2272]
[1758354854825,0.12746714,4485.1,4485.0,0.2272]
[1758354855348,0.33663912,4485.1,4485.0,0.001]
[1758354855533,0.57223912,4485.1,4485.0,0.001]
[1758354855847,0.66160951,4485.1,4485.0,0.001]
[1758354860381,0.45243753,4485.1,4485.0,0.001]
[1758354860563,0.21683753,4485.1,4485.0,0.001]
[1758354870263,0.21683753,4485.1,4485.0,0.2383]
[1758354871198,0.21683753,4485.1,4485.0,2.4679544]
[1758354871356,0.21683753,4485.1,4485.0,0.2383]
[1758354872609,0.12746714,4485.1,4485.0,2.4679544]
[1758354872755,0.002,4485.1,4485.0,8.51513313]
[1758354873162,0.002,4485.1,4485.0,3.38742154]
[1758354873492,0.002,4485.1,4485.0,3.40971808]
[1758354877313,0.002,4485.1,4485.0,3.38742154]
[1758354877824,0.002,4485.1,4485.0,11.65753234]
[1758354877987,0.002,4485.1,4485.0,11.6352358]
[1758354882018,0.002,4485.1,4485.0,11.3979358]
[1758354882222,0.002,4485.1,4485.0,11.6352358]
[1758354882721,0.002,4485.1,4485.0,7.3752358]
[1758354888727,0.002,4485.1,4485.0,11.6352358]
[1758354894633,0.002,4485.1,4485.0,7.3752358]
[1758354900637,0.002,4485.1,4485.0,11.6352358]
[1758354901543,0.002,4485.1,4485.0,7.1379358]
[1758354901746,0.002,4485.1,4485.0,3.15012154]
[1758354902722,0.002,4485.1,4485.0,3.38742154]
[1758354905424,0.002,4485.1,4485.0,3.15012154]
[1758354905740,0.2303,4485.1,4485.0,3.15012154]
[1758354906939,0.002,4485.1,4485.0,3.15012154]
[1758354910934,0.2303,4485.1,4485.0,3.15012154]
[1758354911532,0.002,4485.1,4485.0,3.15012154]
[1758354914642,0.002,4485.1,4485.0,2.35812154]
[1758354914847,0.002,4485.1,4485.0,2.25295094]
[1758354916888,0.002,4485.1,4485.0,3.2606544]
[1758354917093,0.002,4485.1,4485.0,4.32590359]
[1758354918297,0.002,4485.1,4485.0,3.35001142]
[1758354919299,0.002,4485.1,4485.0,3.11201142]
[1758354919465,0.002,4485.1,4485.0,3.35001142]
[1758354919886,0.002,4485.1,4485.0,3.37230796]
[1758354920379,0.002,4485.1,4485.0,3.35001142]
[1758354921074,0.002,4485.1,4485.0,3.93038121]
[1758354924899,0.002,4485.1,4485.0,3.69238121]
[1758354925220,0.002,4485.1,4485.0,3.13430796]
[1758354925908,0.002,4485.1,4485.0,3.11201142]
[1758354926676,0.002,4485.1,4485.0,3.35001142]
[1758354926875,0.002,4485.1,4485.0,3.37230796]
[1758354931419,0.002,4485.1,4485.0,3.35001142]
[1758354934423,0.002,4485.1,4485.0,3.13430796]
[1758354935141,0.002,4485.1,4485.0,3.37230796]
[1758354935347,0.002,4485.1,4485.0,4.35861086]
[1758354936665,0.2348,4485.6,4485.2,0.792]
[1758354936666,1e-08,4485.6,4485.2,0.792]
[1758354936830,1e-08,4485.6,4485.1,2.22960469]
[1758354936831,1e-08,4485.6,4485.5,10.26665506]
[1758354937349,0.002,4486.0,4485.9,3.02120707]
[1758354937350,1e-08,4486.0,4485.9,3.02120707]
[1758354937517,1e-08,4486.0,4485.9,10.28874834]
[1758354937709,1e-08,4486.0,4485.9,10.50445627]
[1758354938112,1e-08,4486.0,4485.9,10.73725627]
[1758354945836,1e-08,4486.0,4485.9,6.49200707]
[1758354946031,1e-08,4486.0,4485.9,8.44245243]
[1758354950950,1e-08,4486.0,4485.9,12.70245243]
[1758354953593,1e-08,4486.0,4485.9,12.69145243]
[1758354954806,1e-08,4486.0,4485.9,12.46445243]
[1758354957328,1e-08,4486.0,4485.9,12.69145243]
[1758354959527,1e-08,4486.0,4485.9,12.46445243]
[1758354960014,1e-08,4486.0,4485.9,12.69145243]
[1758354960725,1e-08,4486.0,4485.9,12.46445243]
[1758354960931,1e-08,4486.0,4485.9,12.70585243]
[1758354961314,1e-08,4486.0,4485.9,12.46445243]
[1758354962307,1e-08,4486.0,4485.9,12.70585243]
[1758354964114,1e-08,4486.0,4485.9,12.46445243]
[1758354967321,0.24270001,4486.0,4485.9,12.46445243]
[1758354967838,1e-08,4486.0,4485.9,12.46445243]
[1758354969967,1e-08,4486.0,4485.9,12.70585243]
[1758354971788,1e-08,4486.0,4485.9,12.46445243]
[1758354972555,1e-08,4486.0,4485.9,12.70585243]
[1758354977697,0.002,4486.5,4486.1,6.02110768]
[1758354978001,0.002,4486.5,4486.4,8.27071301]
[1758354978343,0.002,4486.5,4486.4,8.51771301]
[1758354979066,0.002,4486.5,4486.4,8.76251301]
[1758354983674,0.002,4486.5,4486.4,13.022513]
[1758354984798,0.2448,4487.1,4487.0,3.02066057]
[1758354984975,0.2448,4487.1,4487.0,7.58272662]
[1758354985864,0.01,4488.9,4487.8,2.22826329]
[1758354986095,0.13513979,4487.9,4487.8,2.22826329]
[1758354986580,0.37993979,4487.9,4487.8,2.22826329]
[1758354986961,0.37993979,4487.9,4487.8,3.02026329]
[1758354987362,0.2548,4487.9,4487.8,3.02026329]
[1758354991962,0.2568,4487.9,4487.8,3.02026329]
[1758354992672,0.012,4487.9,4487.8,3.02026329]
[1758354992978,0.2568,4487.9,4487.8,3.02026329]
[1758354994111,0.2568,4487.9,4487.8,2.22826329]
[1758354994310,0.38192791,4487.9,4487.8,2.22826329]
[1758354994802,0.012,4487.9,4487.8,2.22826329]
[1758354995312,0.012,4487.9,4487.8,3.04254592]
[1758354995612,0.2568,4487.9,4487.8,3.02026329]
[1758354995814,0.2568,4487.9,4487.8,3.38224174]
[1758354996174,0.2568,4487.9,4487.8,3.40452437]
[1758354996374,0.2568,4487.9,4487.8,3.04254592]
[1758354996670,0.012,4487.9,4487.8,3.04254592]
[1758355000910,0.2568,4487.9,4487.8,3.02026329]
[1758355001808,0.2568,4487.9,4487.8,3.04254592]
[1758355002108,0.2568,4487.9,4487.8,3.02026329]
[1758355003504,0.012,4487.9,4487.8,3.02026329]
[1758355010288,0.012,4487.9,4487.8,3.04254592]
[1758355013344,0.012,4487.9,4487.8,3.54889229]
[1758355013531,0.012,4487.9,4487.8,3.77459229]
[1758355016357,0.012,4487.9,4487.8,3.52660966]
[1758355017120,0.259,4487.9,4487.8,3.52660966]
[1758355017961,0.012,4487.9,4487.8,3.52660966]
[1758355018258,0.259,4487.9,4487.8,3.02026329]
[1758355019274,0.259,4487.9,4487.8,7.28026328]
[1758355021227,0.3843485,4487.9,4487.8,7.28026328]
[1758355022332,0.3859485,4487.9,4487.8,4.25999999]
[1758355022659,0.3859485,4487.9,4487.8,6.48826328]
[1758355026774,0.3739485,4487.6,4487.5,2.22841225]
[1758355032084,0.1253485,4487.6,4487.5,2.22841225]
[1758355032794,0.3739485,4487.6,4487.5,2.22841225]
[1758355032945,0.1253485,4487.6,4487.5,3.54530463]
[1758355033145,0.012,4487.9,4487.8,3.02026329]
[1758355033842,0.2619,4487.9,4487.8,3.02026329]
[1758355034276,0.2619,4487.9,4487.8,2.22826329]
[1758355034479,0.38708201,4487.9,4487.8,2.22826329]
[1758355034947,0.13718201,4487.9,4487.8,2.22826329]
[1758355035196,0.38708201,4487.9,4487.8,2.22826329]
[1758355036376,0.38708563,4487.9,4487.8,2.22826329]
[1758355037190,0.13718563,4487.9,4487.8,2.22826329]
[1758355037586,0.137193,4487.9,4487.8,2.22826329]
[1758355037988,0.012,4487.9,4487.8,2.22826329]
[1758355038178,0.012,4487.9,4487.8,2.25054592]
[1758355039388,0.012,4487.9,4487.8,3.53796181]
[1758355039568,0.012,4487.9,4487.8,3.74107918]
[1758355044395,0.012,4487.9,4487.8,3.76336181]
[1758355051229,0.012,4487.9,4487.8,3.53796181]
[1758355051437,0.012,4487.9,4487.8,3.51567918]
[1758355051926,0.012,4487.9,4487.8,3.74107918]
[1758355052624,0.012,4487.9,4487.8,3.76336181]
[1758355053226,0.012,4487.9,4487.8,3.74107918]
[1758355053719,0.012,4487.9,4487.8,3.51567918]
[1758355054308,0.012,4487.9,4487.8,3.74107918]
[1758355054827,0.012,4487.9,4487.8,3.51567918]
[1758355055726,0.012,4487.9,4487.8,3.74107918]
[1758355056027,0.012,4487.9,4487.8,3.51567918]
[1758355056804,0.012,4487.9,4487.8,3.74107918]
[1758355060398,0.13731955,4487.9,4487.8,3.74107918]
[1758355063438,0.13731955,4487.9,4487.8,3.76336181]
[1758355063932,0.012,4487.9,4487.8,3.76336181]
[1758355064305,0.012,4487.9,4487.8,3.74107918]
[1758355064527,0.012,4487.9,4487.8,3.51567918]
[1758355065834,0.012,4487.9,4487.8,3.76327918]
[1758355066006,0.012,4487.9,4487.8,3.51567918]
[1758355066944,0.012,4487.9,4487.8,3.76327918]
[1758355077471,0.012,4487.9,4487.8,3.51567918]
[1758355078477,0.012,4487.9,4487.8,3.76327918]
[1758355079179,0.012,4487.9,4487.8,3.51567918]
[1758355079380,0.36602462,4487.9,4487.8,3.02026329]
[1758355079681,0.36602462,4487.9,4487.8,2.22826329]
[1758355081682,2.22781424,4488.8,4488.7,0.36602462]
[1758355081885,5.25698637,4488.9,4488.7,0.36602462]
[1758355082176,0.01,4488.9,4488.7,0.36602462]
[1758355083179,0.01,4488.9,4488.5,2.22791204]
[1758355083682,0.1881,4488.8,4488.5,2.22791204]
[1758355083881,0.09580721,4488.7,4488.5,2.22791204]
[1758355084188,0.01,4488.9,4488.5,2.22791204]
[1758355084189,0.01,4488.9,4488.5,2.22791578]
[1758355085888,0.0958,4488.8,4488.5,2.22791578]
[1758355086092,0.0958,4488.7,4488.6,2.22785477]
[1758355086876,0.01,4488.9,4488.8,2.22776688]
[1758355091870,0.01,4488.9,4488.8,2.47336688]
[1758355095968,0.012,4488.9,4488.8,2.22776688]
[1758355096168,0.012,4488.9,4488.8,2.45866688]
[1758355097393,0.012,4488.9,4488.8,2.93912739]
[1758355099427,0.012,4488.9,4488.8,2.70822739]
[1758355099634,0.012,4488.9,4488.8,2.93912739]
[1758355102115,0.012,4488.9,4488.8,3.73112739]
[1758355102680,0.012,4488.9,4488.8,8.97811376]
[1758355104493,0.012,4488.9,4488.8,3.73112739]
[1758355105426,0.012,4488.9,4488.8,3.50022739]
[1758355106128,0.012,4488.9,4488.8,3.73112739]
[1758355107137,0.012,4488.9,4488.8,4.1799791]
[1758355110120,0.012,4488.9,4488.8,3.9490791]
[1758355110988,0.012,4488.9,4488.8,3.1570791]
[1758355111609,0.012,4488.9,4488.6,6.48786]
[1758355111610,0.012,4488.9,4488.2,0.001]
[1758355111793,0.012,4488.9,4488.3,0.792]
[1758355112015,0.012,4488.9,4488.2,0.45017919]
[1758355112336,0.012,4488.9,4488.2,1.05361734]
[1758355112494,0.012,4488.9,4488.3,0.02228015]
[1758355113498,0.012,4488.9,4488.8,2.22776688]
[1758355121955,0.012,4488.9,4488.2,0.001]
[1758355121956,0.23309033,4488.9,4488.2,0.001]
[1758355122174,0.12529033,4488.8,4488.2,0.001]
[1758355122351,0.12529033,4488.7,4488.2,0.001]
[1758355122535,0.12529033,4488.6,4488.2,0.001]
[1758355122739,0.12529033,4488.5,4488.2,0.001]
[1758355122922,0.12529033,4488.4,4488.2,0.001]
[1758355123122,0.12529033,4488.3,4488.2,0.001]
[1758355123322,0.0958,4488.4,4488.2,0.001]
[1758355123571,0.12529033,4488.3,4488.2,0.001]
[1758355123758,0.0958,4488.4,4488.2,0.001]
[1758355123966,0.12529033,4488.3,4488.2,0.001]
[1758355124168,0.0958,4488.4,4488.2,2.22906142]
[1758355124363,0.22109033,4488.4,4488.2,0.001]
[1758355124663,0.0958,4488.4,4488.2,0.001]
[1758355124866,0.22109033,4488.4,4488.2,0.001]
[1758355125066,0.0958,4488.4,4488.2,0.001]